bitfinex-derivatives/quotes_SOLF0:USTF0_20250823
["timestamp","ask_amount","ask_price","bid_price","bid_amount"]
[1755992746330,120.42,204.41,204.34,7.6351]
[1755992746526,120.42,204.41,204.35,4.19389767]
[1755992746828,120.42,204.41,204.34,7.6351]
[1755992747230,4.8924,204.46,204.36,2.74]
[1755992747531,120.28,204.45,204.36,2.74]
[1755992747926,4.8924,204.46,204.36,2.74]
[1755992748129,120.34,204.45,204.36,2.74]
[1755992748426,4.8924,204.46,204.36,2.74]
[1755992748628,120.34,204.44,204.36,7.6347]
[1755992750033,4.8929,204.45,204.36,7.6347]
[1755992750234,120.32,204.44,204.36,7.6347]
[1755992750534,120.3,204.44,204.36,7.6347]
[1755992750730,129.50556108,204.44,204.36,2.74]
[1755992750939,4.31246108,204.41,204.34,4.8953]
[1755992751230,4.31246108,204.41,204.35,9.04228676]
[1755992751430,9.20626108,204.41,204.36,9.04228676]
[1755992751636,120.32,204.41,204.37,9.04228676]
[1755992751838,120.32,204.41,204.38,9.04228676]
[1755992752046,120.32,204.41,204.39,4.6641259]
[1755992752337,120.32,204.41,204.35,2.74]
[1755992752640,124.63246108,204.41,204.36,9.04193806]
[1755992752841,124.63246108,204.41,204.37,4.66391059]
[1755992753032,124.63246108,204.41,204.31,2.74]
[1755992753336,4.8946,204.37,204.32,9.04359729]
[1755992753536,4.8946,204.37,204.33,9.04359729]
[1755992753739,4.8946,204.37,204.34,9.04359729]
[1755992754038,4.31246108,204.38,204.35,9.04359729]
[1755992754240,4.31246108,204.38,204.36,4.66477167]
[1755992754438,4.31246108,204.38,204.31,2.74]
[1755992754641,4.31246108,204.38,204.32,9.04732179]
[1755992754840,4.31246108,204.38,204.33,9.04732179]
[1755992755138,4.8945,204.38,204.34,9.04732179]
[1755992755440,125.2545,204.38,204.35,9.04732179]
[1755992755630,125.2545,204.38,204.31,7.636]
[1755992755830,4.8945,204.38,204.32,9.0449773]
[1755992756036,125.2345,204.38,204.33,9.0449773]
[1755992756236,125.2345,204.38,204.34,4.37990789]
[1755992756531,125.2345,204.38,204.35,9.04536938]
[1755992756734,125.2345,204.38,204.31,7.636]
[1755992757039,4.8948,204.37,204.32,9.04499806]
[1755992757242,4.8948,204.37,204.33,9.04499806]
[1755992757440,4.8948,204.37,204.34,9.04499806]
[1755992757642,4.8948,204.37,204.35,9.04499806]
[1755992757833,4.8948,204.37,204.31,2.74]
[1755992758142,4.8948,204.37,204.32,9.04555623]
[1755992758348,4.8948,204.37,204.31,2.74]
[1755992758349,4.8948,204.37,204.33,9.04555623]
[1755992758538,4.8948,204.37,204.34,9.04555623]
[1755992758847,4.8948,204.37,204.35,9.04555623]
[1755992759042,4.8948,204.37,204.31,2.74]
[1755992759240,4.8948,204.37,204.32,11.78587151]
[1755992759438,4.8948,204.37,204.33,9.04587151]
[1755992759640,4.8948,204.37,204.34,9.04587151]
[1755992759939,4.8948,204.37,204.35,9.04587151]
[1755992760140,4.8948,204.37,204.32,2.74]
[1755992760442,120.26,204.38,204.34,2.74]
[1755992760641,120.26,204.38,204.35,9.04771537]
[1755992760843,120.26,204.38,204.37,2.74]
[1755992761149,120.34,204.41,204.37,11.78771537]
[1755992761341,120.34,204.41,204.38,9.04771537]
[1755992761546,120.34,204.41,204.37,2.74]
[1755992761742,120.32,204.41,204.38,9.04585632]
[1755992761948,120.32,204.41,204.37,2.74]
[1755992762147,120.32,204.41,204.38,9.04585632]
[1755992762344,120.32,204.41,204.39,4.66593016]
[1755992762646,120.32,204.41,204.37,2.74]
[1755992762845,120.32,204.41,204.38,9.04825507]
[1755992763047,120.3,204.41,204.39,4.66716746]
[1755992763241,120.3,204.41,204.37,2.74]
[1755992763440,4.8936,204.42,204.38,9.04949123]
[1755992763638,120.3,204.41,204.39,9.04949123]
[1755992763850,120.3,204.41,204.35,4.8949]
[1755992764047,120.3,204.41,204.36,9.04824116]
[1755992764253,125.1938,204.41,204.37,9.04824116]
[1755992764444,125.1938,204.41,204.38,9.04824116]
[1755992764649,125.1938,204.41,204.39,4.66716006]
[1755992764951,125.1938,204.41,204.34,2.65]
[1755992765152,125.1938,204.41,204.35,9.05083324]
[1755992765341,125.1938,204.41,204.36,11.70083324]
[1755992765539,125.1938,204.41,204.37,9.05083324]
[1755992765745,125.1938,204.41,204.38,9.05083324]
[1755992765943,125.1938,204.41,204.39,4.66849942]
[1755992766252,125.1938,204.41,204.36,2.65]
[1755992766452,125.1938,204.41,204.37,9.04979963]
[1755992766652,125.1938,204.41,204.38,9.04979963]
[1755992766853,125.1938,204.41,204.39,9.04979963]
[1755992767151,4.894,204.4,204.33,7.5455]
[1755992767452,4.894,204.4,204.34,9.04974982]
[1755992767752,4.894,204.4,204.35,9.04974982]
[1755992767953,4.894,204.4,204.36,9.04974982]
[1755992768157,4.894,204.4,204.37,9.04974982]
[1755992768451,4.8947,204.37,204.33,2.65]
[1755992768645,4.8947,204.37,204.34,9.0322039]
[1755992768843,120.2,204.36,204.35,9.0322039]
[1755992770554,120.2,204.37,204.36,2.65]
[1755992770854,120.2,204.37,204.36,11.6822039]
[1755992771249,120.2,204.37,204.36,9.0322039]
[1755992774150,120.2,204.37,204.36,11.6822039]
[1755992774853,120.2,204.37,204.36,7.03337997]
[1755992775054,120.2,204.37,204.36,11.68126582]
[1755992775551,120.34,204.38,204.36,11.68120303]
[1755992775756,120.34,204.38,204.37,9.03120303]
[1755992776559,4.31246108,204.41,204.37,11.68120303]
[1755992776759,120.3,204.38,204.37,2.65]
[1755992776960,120.3,204.38,204.37,11.67917161]
[1755992777658,120.28,204.39,204.37,11.67917161]
[1755992777855,120.28,204.39,204.38,9.02917161]
[1755992778056,24.4589,204.49,204.38,9.02917161]
[1755992778253,120.24,204.48,204.39,9.02917161]
[1755992778454,4.31246108,204.45,204.4,9.02917161]
[1755992778656,120.28,204.44,204.41,9.02917161]
[1755992778851,120.28,204.44,204.37,2.65]
[1755992779157,120.28,204.44,204.38,9.02659746]
[1755992779462,120.28,204.44,204.39,9.02659746]
[1755992779759,120.28,204.44,204.4,9.02659746]
[1755992779955,120.28,204.44,204.41,9.02659746]
[1755992780261,120.28,204.44,204.37,2.65]
[1755992780559,120.28,204.44,204.38,9.03021446]
[1755992780763,120.28,204.44,204.39,9.03021446]
[1755992781060,120.28,204.44,204.4,9.03021446]
[1755992781258,120.28,204.44,204.41,9.03021446]
[1755992781459,120.28,204.44,204.37,2.65]
[1755992781659,120.28,204.44,204.38,9.0302065]
[1755992781660,125.1731,204.44,204.38,9.0302065]
[1755992781854,125.1731,204.44,204.39,9.0302065]
[1755992782060,125.1731,204.44,204.4,9.0302065]
[1755992782360,125.1731,204.44,204.41,9.0302065]
[1755992782563,125.1731,204.44,204.37,2.65]
[1755992782762,125.1731,204.44,204.38,9.03031706]
[1755992782958,125.1731,204.44,204.39,9.03031706]
[1755992783159,125.1731,204.44,204.4,9.03031706]
[1755992783359,125.1731,204.44,204.41,9.03031706]
[1755992783559,120.2,204.43,204.37,2.65]
[1755992783760,120.2,204.43,204.38,9.02985463]
[1755992783961,120.2,204.43,204.39,9.02985463]
[1755992784264,4.8934,204.43,204.4,9.02985463]
[1755992784459,120.2,204.42,204.41,9.02985463]
[1755992784663,120.2,204.42,204.37,2.65]
[1755992784863,120.2,204.42,204.38,9.03180571]
[1755992785067,120.2,204.42,204.39,9.03180571]
[1755992785258,120.2,204.42,204.4,9.03180571]
[1755992785456,120.2,204.42,204.41,9.03180571]
[1755992789768,4.31246108,204.45,204.41,9.03180571]
[1755992789769,9.20526108,204.45,204.41,9.03180571]
[1755992789969,120.12,204.44,204.42,4.64581968]
[1755992790172,120.12,204.44,204.37,2.65]
[1755992790366,120.12,204.44,204.38,9.02981496]
[1755992790667,120.12,204.44,204.39,9.02981496]
[1755992790862,120.12,204.44,204.4,9.02981496]
[1755992791072,120.12,204.44,204.41,9.02981496]
[1755992791268,120.12,204.44,204.37,2.65]
[1755992791569,120.12,204.44,204.38,9.02927305]
[1755992791765,120.12,204.44,204.39,9.02927305]
[1755992791965,120.12,204.44,204.4,9.02927305]
[1755992792265,120.12,204.44,204.41,9.02927305]
[1755992792468,120.12,204.44,204.37,2.65]
[1755992792668,120.12,204.44,204.38,9.02919124]
[1755992792867,120.12,204.44,204.39,9.02919124]
[1755992793071,120.12,204.44,204.4,9.02919124]
[1755992793271,120.12,204.44,204.41,9.02919124]
[1755992793466,120.12,204.44,204.37,2.65]
[1755992793666,120.12,204.44,204.38,9.02925757]
[1755992793869,120.12,204.44,204.39,9.02925757]
[1755992794170,120.12,204.44,204.4,9.02925757]
[1755992794365,120.12,204.44,204.41,9.02925757]
[1755992794561,120.12,204.44,204.37,2.65]
[1755992794764,120.12,204.44,204.38,9.03050628]
[1755992794965,120.12,204.44,204.39,4.384468]
[1755992795265,120.12,204.44,204.4,9.03050595]
[1755992795466,120.12,204.44,204.41,9.03050595]
[1755992795665,120.12,204.44,204.37,2.65]
[1755992795866,120.12,204.44,204.38,9.03106838]
[1755992796167,120.12,204.44,204.39,9.03106838]
[1755992796369,120.12,204.44,204.4,9.03106838]
[1755992796570,120.12,204.44,204.41,9.03106838]
[1755992796770,120.12,204.44,204.37,2.65]
[1755992796970,120.12,204.44,204.38,9.02920612]
[1755992797170,120.12,204.44,204.39,9.02920612]
[1755992797371,120.12,204.44,204.4,9.02920612]
[1755992797572,120.12,204.44,204.41,9.02920612]
[1755992797873,120.12,204.44,204.37,2.65]
[1755992798173,120.12,204.44,204.38,9.02824895]
[1755992798372,120.12,204.44,204.39,9.02824895]
[1755992798573,120.12,204.44,204.4,9.02824895]
[1755992798773,120.12,204.44,204.41,9.02824895]
[1755992798973,120.12,204.44,204.37,2.65]
[1755992799174,120.12,204.44,204.38,9.02834644]
[1755992799375,120.12,204.44,204.39,9.02834644]
[1755992799573,120.12,204.44,204.4,9.02834644]
[1755992799773,120.12,204.44,204.41,9.02834644]
[1755992799974,120.12,204.44,204.37,2.65]
[1755992800176,120.12,204.44,204.38,9.02911728]
[1755992800369,120.12,204.44,204.39,9.0293419]
[1755992800567,125.0131,204.44,204.4,9.0293419]
[1755992800767,125.0131,204.44,204.41,9.0293419]
[1755992800970,125.0131,204.44,204.37,2.65]
[1755992801168,125.0131,204.44,204.38,9.0295911]
[1755992801482,125.0131,204.44,204.39,9.0295911]
[1755992801675,4.8933,204.43,204.4,9.03005714]
[1755992801869,120.12,204.44,204.34,2.65]
[1755992802078,4.31246108,204.42,204.35,9.03056641]
[1755992802277,4.31246108,204.42,204.36,9.03056641]
[1755992802477,4.31246108,204.42,204.37,9.03056641]
[1755992802679,4.31246108,204.42,204.38,9.03056641]
[1755992802878,4.31246108,204.42,204.34,2.65]
[1755992803080,4.8938,204.41,204.35,9.03403902]
[1755992803381,119.84,204.4,204.36,11.68403902]
[1755992803680,119.84,204.4,204.37,9.03403902]
[1755992803881,119.84,204.4,204.38,9.03403902]
[1755992804077,119.84,204.4,204.36,2.65]
[1755992804480,119.84,204.4,204.37,9.03691884]
[1755992804683,119.84,204.4,204.38,9.03691884]
[1755992804983,119.84,204.4,204.39,9.0377886]
[1755992805382,119.84,204.4,204.39,4.64939221]
[1755992805583,4.8942,204.39,204.33,2.65]
[1755992805783,4.8942,204.39,204.34,9.03998795]
[1755992805983,4.8942,204.39,204.35,9.03998795]
[1755992806188,4.8942,204.39,204.36,9.03998795]
[1755992806381,4.8942,204.39,204.37,9.03998795]
[1755992806684,4.8942,204.39,204.38,9.03998795]
[1755992808482,4.8942,204.39,204.38,4.6509742]
[1755992808682,4.8942,204.39,204.33,2.65]
[1755992808983,4.8942,204.39,204.34,9.04008943]
[1755992809181,9.20666108,204.39,204.35,9.04008943]
[1755992809483,9.20666108,204.39,204.36,9.04008943]
[1755992809683,9.20666108,204.39,204.37,9.04008943]
[1755992809885,9.20666108,204.39,204.33,2.65]
[1755992810084,9.20666108,204.39,204.34,9.0391879]
[1755992810286,9.20666108,204.39,204.35,9.0391879]
[1755992810486,9.20666108,204.39,204.36,9.0391879]
[1755992810686,9.20666108,204.39,204.37,4.64979835]
[1755992810887,9.20666108,204.39,204.33,2.65]
[1755992811188,9.20666108,204.39,204.34,11.68819168]
[1755992811383,9.20666108,204.39,204.35,9.03819168]
[1755992811584,9.20666108,204.39,204.36,9.03819168]
[1755992811783,9.20666108,204.39,204.34,2.65]
[1755992812082,9.20666108,204.39,204.35,9.03759081]
[1755992812283,9.20666108,204.39,204.36,9.03759081]
[1755992812585,9.20666108,204.39,204.3,4.8962]
[1755992812787,4.8945,204.38,204.31,9.03809877]
[1755992812986,4.8945,204.38,204.32,9.03809877]
[1755992813187,4.8945,204.38,204.33,9.03809877]
[1755992813386,4.8945,204.38,204.34,9.03809877]
[1755992813586,4.8945,204.38,204.35,9.03809877]
[1755992813787,4.8945,204.38,204.3,2.65]
[1755992813981,4.8945,204.38,204.31,9.03804242]
[1755992814183,4.8945,204.38,204.3,2.65]
[1755992814184,4.8945,204.38,204.32,4.38882696]
[1755992814385,4.8945,204.38,204.33,9.03804242]
[1755992814582,4.8945,204.38,204.34,9.03804242]
[1755992814788,4.8945,204.38,204.35,9.03804242]
[1755992814988,4.8945,204.38,204.3,2.65]
[1755992815188,4.8945,204.38,204.31,9.03730894]
[1755992815389,4.8945,204.38,204.32,9.03730894]
[1755992815690,4.8945,204.38,204.33,11.68730894]
[1755992815890,4.8945,204.38,204.34,9.03730894]
[1755992816088,4.8945,204.38,204.35,9.03730894]
[1755992816292,4.8945,204.38,204.33,2.65]
[1755992816490,4.8945,204.38,204.34,9.035757]
[1755992816692,4.8945,204.38,204.33,2.65]
[1755992816893,4.8945,204.38,204.34,9.035757]
[1755992817093,4.8945,204.38,204.33,2.65]
[1755992817292,4.8945,204.38,204.34,9.035757]
[1755992817587,4.8945,204.38,204.33,2.65]
[1755992817791,4.8945,204.38,204.34,9.03494746]
[1755992817992,4.8948,204.37,204.33,2.65]
[1755992818192,119.62,204.36,204.34,9.03494746]
[1755992818392,119.62,204.36,204.33,2.65]
[1755992818583,119.62,204.36,204.34,9.03190346]
[1755992818783,119.62,204.36,204.33,2.65]
[1755992818984,119.62,204.36,204.34,9.03256826]
[1755992819186,119.62,204.36,204.33,2.65]
[1755992819386,119.62,204.36,204.34,9.03189096]
[1755992819585,119.62,204.36,204.33,2.65]
[1755992819796,119.62,204.36,204.34,9.03103988]
[1755992820093,119.62,204.36,204.33,2.65]
[1755992820094,119.62,204.36,204.35,9.03103988]
[1755992822701,4.31246108,204.4,204.36,2.65]
[1755992822901,119.58,204.39,204.37,2.65]
[1755992823404,119.58,204.39,204.35,2.65]
[1755992826404,119.58,204.39,204.32,2.7]
[1755992826602,119.58,204.39,204.33,9.02846455]
[1755992826803,119.58,204.39,204.34,9.02846455]
[1755992827101,119.58,204.39,204.35,9.02846455]
[1755992827302,119.58,204.39,204.34,2.7]
[1755992827501,119.58,204.39,204.35,9.02846618]
[1755992827701,119.58,204.39,204.34,2.7]
[1755992827902,119.58,204.39,204.35,9.02846618]
[1755992828097,119.58,204.39,204.34,2.7]
[1755992828304,119.58,204.39,204.35,9.02914316]
[1755992828504,119.58,204.39,204.34,2.7]
[1755992828704,119.58,204.39,204.35,9.02907083]
[1755992828906,119.58,204.39,204.34,2.7]
[1755992829206,119.58,204.39,204.35,9.03081888]
[1755992829405,119.58,204.39,204.34,2.7]
[1755992829706,120.43161575,204.39,204.35,9.03082955]
[1755992829906,120.43161575,204.39,204.34,2.7]
[1755992830107,120.43161575,204.39,204.35,9.03666645]
[1755992830309,120.43161575,204.39,204.34,2.7]
[1755992830609,120.43161575,204.39,204.35,9.03758303]
[1755992830906,120.43161575,204.39,204.34,2.7]
[1755992831107,120.43161575,204.39,204.35,9.03645023]
[1755992831307,120.43161575,204.39,204.34,2.7]
[1755992831508,120.43161575,204.39,204.35,9.03704595]
[1755992831808,120.43161575,204.39,204.34,2.7]
[1755992832005,120.43161575,204.39,204.35,9.036423]
[1755992832205,120.43161575,204.39,204.34,2.7]
[1755992832406,120.43161575,204.39,204.35,9.03659399]
[1755992832608,120.43161575,204.39,204.34,2.7]
[1755992832906,120.43161575,204.39,204.35,9.03659399]
[1755992833106,125.32591575,204.39,204.34,2.7]
[1755992833305,125.32591575,204.39,204.35,9.03492181]
[1755992833505,125.32591575,204.39,204.34,2.7]
[1755992833703,125.32591575,204.39,204.35,9.03527193]
[1755992833902,125.32591575,204.39,204.34,2.7]
[1755992834106,125.32591575,204.39,204.35,9.03569002]
[1755992834308,125.32591575,204.39,204.34,2.7]
[1755992834506,125.32591575,204.39,204.35,9.03696636]
[1755992834707,125.32591575,204.39,204.34,2.7]
[1755992834909,125.32591575,204.39,204.35,9.0369702]
[1755992835208,125.32591575,204.39,204.34,2.7]
[1755992835507,125.32591575,204.39,204.35,9.03740278]
[1755992835709,125.32591575,204.39,204.34,2.7]
[1755992835910,125.32591575,204.39,204.35,9.0383601]
[1755992836109,125.32591575,204.39,204.34,2.7]
[1755992836311,125.32591575,204.39,204.35,9.0383601]
[1755992836502,125.32591575,204.39,204.34,2.7]
[1755992836707,125.32591575,204.39,204.35,9.03946745]
[1755992836910,125.32591575,204.39,204.34,2.7]
[1755992837105,125.32591575,204.39,204.35,9.0390493]
[1755992837306,125.32591575,204.39,204.34,2.7]
[1755992837510,120.43161575,204.39,204.36,2.7]
[1755992837707,120.43161575,204.39,204.32,4.8957]
[1755992837908,120.43161575,204.39,204.33,11.73966209]
[1755992838211,120.43161575,204.39,204.34,9.03966209]
[1755992838406,120.43161575,204.39,204.35,9.03966209]
[1755992838610,120.43161575,204.39,204.32,4.8957]
[1755992838808,120.43161575,204.39,204.33,9.04063801]
[1755992839010,120.43161575,204.39,204.34,9.04063801]
[1755992839209,120.43161575,204.39,204.35,9.04063801]
[1755992839416,120.43161575,204.39,204.32,4.8957]
[1755992839613,125.32601575,204.39,204.33,9.04171313]
[1755992839811,125.32601575,204.39,204.34,9.04171313]
[1755992840011,125.32601575,204.39,204.35,9.04171313]
[1755992840213,125.32601575,204.39,204.32,4.8957]
[1755992840415,2.76233025,204.35,204.33,9.04270783]
[1755992840611,122.20233025,204.35,204.34,9.04270783]
[1755992842717,122.20233025,204.35,204.34,9.04577946]
[1755992843518,122.20233025,204.35,204.34,9.0469905]
[1755992848025,119.44,204.35,204.34,11.7469905]
[1755992850223,119.44,204.35,204.34,9.0469905]
[1755992852522,119.44,204.35,204.34,8.72956781]
[1755992853019,119.44,204.35,204.34,8.72964073]
[1755992855823,119.44,204.35,204.34,8.73144428]
[1755992856126,119.44,204.35,204.26,2.61]
[1755992856318,2.76233025,204.32,204.28,2.61]
[1755992856520,119.42,204.31,204.28,2.61]
[1755992856815,119.42,204.31,204.26,4.8972]
[1755992857022,119.42,204.31,204.27,6.67105039]
[1755992857224,24.4732,204.38,204.22,2.61]
[1755992857225,2.76233025,204.29,204.22,2.61]
[1755992857423,2.76233025,204.27,204.24,2.61]
[1755992858225,2.76233025,204.25,204.19,2.61]
[1755992858525,2.76233025,204.25,204.21,2.61]
[1755992859229,2.76233025,204.23,204.19,2.61]
[1755992860322,119.56,204.24,204.19,2.61]
[1755992860721,119.56,204.24,204.11,32.92489397]
[1755992860722,119.56,204.24,204.15,2.61]
[1755992861025,119.56,204.24,204.16,3.97758024]
[1755992861325,4.8984,204.22,204.13,2.61]
[1755992861524,4.8984,204.22,204.14,3.97514839]
[1755992861723,4.8984,204.22,204.13,2.61]
[1755992861924,4.8984,204.22,204.14,3.97499152]
[1755992862231,4.8984,204.22,204.13,2.61]
[1755992862433,4.8984,204.22,204.14,3.97478138]
[1755992862727,4.8984,204.22,204.13,7.5103]
[1755992863029,4.8984,204.22,204.14,3.9721092]
[1755992863232,4.32148148,204.23,204.15,4.9]
[1755992864431,4.32148148,204.23,204.15,7.51]
[1755992866025,4.32148148,204.23,204.16,4.8996]
[1755992867930,4.32148148,204.23,204.17,4.3314481]
[1755992868128,4.32148148,204.23,204.18,4.3314481]
[1755992868434,4.32148148,204.23,204.16,4.8996]
[1755992868635,4.32148148,204.23,204.17,4.3302042]
[1755992868836,4.32148148,204.23,204.16,4.8996]
[1755992869037,4.32148148,204.23,204.17,4.33020422]
[1755992869226,4.32148148,204.23,204.16,4.8996]
[1755992869430,4.8979,204.24,204.17,4.3292715]
[1755992869635,4.32148148,204.22,204.16,4.8996]
[1755992869836,119.56,204.21,204.17,11.83847003]
[1755992870041,119.56,204.21,204.19,2.61]
[1755992870534,119.56,204.21,204.17,4.8994]
[1755992870735,119.56,204.21,204.17,7.5094]
[1755992871132,4.32148148,204.28,204.19,2.61]
[1755992871334,119.58,204.27,204.19,2.61]
[1755992871936,119.58,204.27,204.19,7.509]
[1755992876640,4.32148148,204.25,204.19,4.899]
[1755992878748,4.32148148,204.25,204.19,7.509]
[1755992879746,4.32148148,204.25,204.17,7.5095]
[1755992882244,2.76600787,204.21,204.17,7.5095]
[1755992882550,2.76600787,204.21,204.19,2.61]
[1755992882948,2.76600787,204.21,204.18,2.61]
[1755992883352,2.76600787,204.21,204.17,4.8995]
[1755992883550,2.76600787,204.21,204.19,2.61]
[1755992884751,2.76600787,204.21,204.2,2.56]
[1755992886254,4.8976,204.26,204.21,2.56]
[1755992886450,2.76600787,204.23,204.22,2.56]
[1755992887850,119.5,204.25,204.23,4.8979]
[1755992888156,122.40600787,204.28,204.22,2.56]
[1755992888352,119.64,204.28,204.23,2.76600787]
[1755992888552,331.84600787,204.33,204.27,2.56]
[1755992888756,451.52600787,204.33,204.27,2.56]
[1755992889161,2.76600787,204.31,204.28,4.8969]
[1755992889359,2.76600787,204.31,204.29,2.56]
[1755992889555,2.76600787,204.31,204.28,4.8969]
[1755992889756,2.76600787,204.31,204.29,2.56]
[1755992890155,2.76600787,204.31,204.3,2.56]
[1755992890362,329.08,204.33,204.3,2.56]
[1755992891356,119.72,204.33,204.3,2.56]
[1755992892263,119.72,204.33,204.28,4.8969]
[1755992892462,119.72,204.33,204.29,2.56]
[1755992897264,119.56,204.32,204.29,2.56]
[1755992901279,119.52,204.32,204.3,2.56]
[1755992902075,119.52,204.32,204.28,4.8967]
[1755992902373,119.52,204.32,204.28,7.4567]
[1755992908073,4.3172703,204.31,204.21,2.56]
[1755992908283,4.3172703,204.28,204.22,4.30448021]
[1755992908579,119.56,204.27,204.21,2.56]
[1755992909571,119.56,204.27,204.23,7.4579]
[1755992909772,123.8572703,204.28,204.24,2.56]
[1755992910481,123.8572703,204.28,204.23,4.8979]
[1755992911077,123.8572703,204.28,204.23,7.4579]
[1755992911977,4.3172703,204.28,204.23,7.4579]
[1755992912177,123.8172703,204.28,204.23,7.4579]
[1755992912977,123.8172703,204.28,204.24,4.8977]
[1755992913477,119.5,204.28,204.24,4.8977]
[1755992914074,4.3172703,204.29,204.24,4.8977]
[1755992914272,119.5,204.28,204.24,4.8977]
[1755992918282,2.76478697,204.25,204.22,4.8982]
[1755992918781,2.76478697,204.25,204.22,7.7182]
[1755992919779,2.76478697,204.25,204.22,4.8982]
[1755992920378,2.76478697,204.25,204.22,7.7182]
[1755992920685,2.76478697,204.25,204.22,4.8982]
[1755992921379,2.76478697,204.25,204.22,7.7182]
[1755992921582,2.76478697,204.25,204.23,2.82]
[1755992924182,2.76478697,204.26,204.19,2.82]
[1755992924487,2.76478697,204.26,204.21,2.82]
[1755992924682,2.76478697,204.26,204.22,4.36455039]
[1755992924883,4.896,204.32,204.23,7.18507813]
[1755992925181,2.76478697,204.26,204.24,2.82]
[1755992925386,2.76478697,204.26,204.23,4.8978]
[1755992925687,2.76478697,204.26,204.24,2.82]
[1755992927287,2.76478697,204.26,204.24,7.7177]
[1755992930394,2.76478697,204.26,204.24,2.82]
[1755992936092,2.76478697,204.26,204.25,4.37019332]
[1755992936388,2.76478697,204.26,204.24,2.82]
[1755992936592,2.76478697,204.26,204.25,4.37029447]
[1755992937095,2.76478697,204.26,204.22,4.8983]
[1755992937096,2.76478697,204.26,204.22,7.7183]
[1755992937292,2.76478697,204.24,204.23,4.37083818]
[1755992937493,2.76478697,204.24,204.23,7.19083818]
[1755992937994,2.76478697,204.24,204.21,2.82]
[1755992938197,2.76478697,204.22,204.21,2.82]
[1755992938395,2.76478697,204.22,204.21,7.19191373]
[1755992940099,2.76478697,204.22,204.21,4.37260871]
[1755992941495,2.76478697,204.22,204.18,2.82]
[1755992941694,2.76478697,204.19,204.18,2.82]
[1755992941894,2.76478697,204.19,204.18,7.19410079]
[1755992942192,2.76478697,204.19,204.18,4.37410079]
[1755992942588,2.76478697,204.19,204.18,7.19410079]
[1755992943694,2.76478697,204.19,204.18,4.37410079]
[1755992945900,2.76478697,204.19,204.15,2.8]
[1755992946097,2.76478697,204.16,204.15,2.8]
[1755992946299,2.76478697,204.16,204.12,2.8]
[1755992946499,2.76478697,204.16,204.07,12.56858697]
[1755992946693,2.76478697,204.18,204.1,2.8]
[1755992946889,2.76478697,204.18,204.12,2.8]
[1755992947400,2.76478697,204.18,204.14,4.9001]
[1755992947596,2.76478697,204.18,204.15,2.8]
[1755992947795,2.76478697,204.18,204.16,2.8]
[1755992947997,2.76478697,204.19,204.17,2.8]
[1755992948197,2.76478697,204.19,204.18,2.8]
[1755992950498,4.32256556,204.22,204.18,2.8]
[1755992950800,4.32256556,204.22,204.16,2.8]
[1755992951396,4.8975,204.26,204.16,2.8]
[1755992951598,4.32256556,204.24,204.16,2.8]
[1755992952508,4.32256556,204.24,204.17,4.8992]
[1755992953800,4.32256556,204.24,204.18,2.8]
[1755992958207,119.48,204.25,204.13,24.502]
[1755992958208,119.48,204.25,204.19,4.27841488]
[1755992958506,4.32256556,204.27,204.21,2.8]
[1755992958910,4.32256556,204.27,204.21,4.8984]
[1755992959203,4.32256556,204.27,204.23,2.8]
[1755992959405,4.32256556,204.27,204.24,2.8]
[1755992960608,4.32256556,204.27,204.22,2.8]
[1755992960808,4.32256556,204.27,204.21,4.8984]
[1755992961008,4.32256556,204.27,204.24,2.8]
[1755992961505,4.32256556,204.27,204.22,2.8]
[1755992961802,4.32256556,204.27,204.23,2.8]
[1755992962198,4.32256556,204.27,204.22,2.8]